[Event "Titled Tuesday Blitz February 22 Early 2022"]
[White "Kollars, Dmitrij"]
[Black "Zhu, Jiner"]
[WhiteFideId "12909572"]
[BlackFideId "8608059"]
[WhiteElo "2584"]
[BlackElo "2281"]
[Result "1/2-1/2"]
[Round "11"]
[TimeControl "180+1"]
[Date "2022.02.22"]
[WhiteClock "0:00:09"]
[BlackClock "0:00:12"]

1. e4 {[%clk 0:03:00]}  e5 {[%clk 0:02:59]} 2. Nf3 {[%clk 0:03:01]}  Nc6 {[%clk 0:02:59]} 3. Bb5 {[%clk 0:03:01]}  a6 {[%clk 0:02:57]} 4. Ba4 {[%clk 0:03:01]}  Nf6 {[%clk 0:02:58]} 5. O-O {[%clk 0:03:01]}  Be7 {[%clk 0:02:58]} 6. Re1 {[%clk 0:03:00]}  b5 {[%clk 0:02:58]} 7. Bb3 {[%clk 0:03:01]}  O-O {[%clk 0:02:59]} 8. a4 {[%clk 0:02:56]}  b4 {[%clk 0:02:56]} 9. d3 {[%clk 0:02:53]}  d6 {[%clk 0:02:55]} 10. c3 {[%clk 0:02:46]}  Rb8 {[%clk 0:02:52]} 11. Nbd2 {[%clk 0:02:46]}  Be6 {[%clk 0:02:51]} 12. Bxe6 {[%clk 0:02:43]}  fxe6 {[%clk 0:02:51]} 13. d4 {[%clk 0:02:36]}  bxc3 {[%clk 0:02:34]} 14. bxc3 {[%clk 0:02:37]}  exd4 {[%clk 0:02:34]} 15. cxd4 {[%clk 0:02:38]}  Nb4 {[%clk 0:02:25]} 16. Nb3 {[%clk 0:02:22]}  c5 {[%clk 0:02:11]} 17. Qe2 {[%clk 0:02:04]}  Kh8 {[%clk 0:01:47]} 18. dxc5 {[%clk 0:01:46]}  dxc5 {[%clk 0:01:47]} 19. Bf4 {[%clk 0:01:47]}  Rb7 {[%clk 0:01:39]} 20. Red1 {[%clk 0:01:45]}  Rd7 {[%clk 0:01:36]} 21. Ng5 {[%clk 0:01:18]}  Qb6 {[%clk 0:01:14]} 22. Qc4 {[%clk 0:01:09]}  Rxd1+ {[%clk 0:00:52]} 23. Rxd1 {[%clk 0:01:10]}  Nh5 {[%clk 0:00:20]} 24. Be3 {[%clk 0:01:02]}  Bxg5 {[%clk 0:00:19]} 25. Bxc5 {[%clk 0:00:58]}  Qc6 {[%clk 0:00:15]} 26. Na5 {[%clk 0:00:46]}  Qc7 {[%clk 0:00:14]} 27. Bxb4 {[%clk 0:00:45]}  Qxc4 {[%clk 0:00:13]} 28. Nxc4 {[%clk 0:00:46]}  Rb8 {[%clk 0:00:13]} 29. Bd6 {[%clk 0:00:40]}  Rc8 {[%clk 0:00:13]} 30. Ne5 {[%clk 0:00:36]}  Kg8 {[%clk 0:00:11]} 31. g3 {[%clk 0:00:35]}  Bd8 {[%clk 0:00:07]} 32. Bb4 {[%clk 0:00:27]}  Nf6 {[%clk 0:00:08]} 33. f3 {[%clk 0:00:17]}  Bb6+ {[%clk 0:00:08]} 34. Kh1 {[%clk 0:00:18]}  h5 {[%clk 0:00:06]} 35. Rd6 {[%clk 0:00:17]}  Rc1+ {[%clk 0:00:04]} 36. Kg2 {[%clk 0:00:17]}  Rc2+ {[%clk 0:00:05]} 37. Rd2 {[%clk 0:00:17]}  Rc1 {[%clk 0:00:04]} 38. Be7 {[%clk 0:00:15]}  Be3 {[%clk 0:00:04]} 39. Re2 {[%clk 0:00:15]}  Bd4 {[%clk 0:00:04]} 40. Ng6 {[%clk 0:00:13]}  Kf7 {[%clk 0:00:04]} 41. Bxf6 {[%clk 0:00:13]}  gxf6 {[%clk 0:00:05]} 42. Nf4 {[%clk 0:00:14]}  Ra1 {[%clk 0:00:05]} 43. Rd2 {[%clk 0:00:12]}  Rxa4 {[%clk 0:00:05]} 44. Nxh5 {[%clk 0:00:12]}  Be5 {[%clk 0:00:03]} 45. Nf4 {[%clk 0:00:11]}  Bxf4 {[%clk 0:00:03]} 46. gxf4 {[%clk 0:00:11]}  a5 {[%clk 0:00:03]} 47. Rd7+ {[%clk 0:00:11]}  Kg6 {[%clk 0:00:04]} 48. Ra7 {[%clk 0:00:12]}  Ra1 {[%clk 0:00:04]} 49. Kg3 {[%clk 0:00:13]}  a4 {[%clk 0:00:04]} 50. Ra6 {[%clk 0:00:13]}  a3 {[%clk 0:00:05]} 51. Kg2 {[%clk 0:00:12]}  a2 {[%clk 0:00:04]} 52. h3 {[%clk 0:00:10]}  Kh5 {[%clk 0:00:05]} 53. Ra4 {[%clk 0:00:08]}  Kg6 {[%clk 0:00:05]} 54. Ra5 {[%clk 0:00:09]}  Kh6 {[%clk 0:00:06]} 55. Ra6 {[%clk 0:00:08]}  Kg6 {[%clk 0:00:06]} 56. Kh2 {[%clk 0:00:09]}  Kh6 {[%clk 0:00:07]} 57. h4 {[%clk 0:00:05]}  Kg6 {[%clk 0:00:07]} 58. Ra5 {[%clk 0:00:05]}  Kh6 {[%clk 0:00:07]} 59. h5 {[%clk 0:00:05]}  Kh7 {[%clk 0:00:07]} 60. Kg2 {[%clk 0:00:05]}  Kh6 {[%clk 0:00:08]} 61. Kh2 {[%clk 0:00:06]}  Kh7 {[%clk 0:00:09]} 62. Ra6 {[%clk 0:00:07]}  Kh6 {[%clk 0:00:09]} 63. f5 {[%clk 0:00:07]}  exf5 {[%clk 0:00:04]} 64. Rxf6+ {[%clk 0:00:08]}  Kg7 {[%clk 0:00:05]} 65. Rg6+ {[%clk 0:00:07]}  Kh7 {[%clk 0:00:04]} 66. Ra6 {[%clk 0:00:08]}  fxe4 {[%clk 0:00:05]} 67. fxe4 {[%clk 0:00:08]}  Re1 {[%clk 0:00:06]} 68. Rxa2 {[%clk 0:00:08]}  Rxe4 {[%clk 0:00:06]} 69. Kg3 {[%clk 0:00:09]}  Kh6 {[%clk 0:00:07]} 70. Ra5 {[%clk 0:00:09]}  Rb4 {[%clk 0:00:07]} 71. Kh3 {[%clk 0:00:09]}  Rc4 {[%clk 0:00:08]} 72. Kg3 {[%clk 0:00:09]}  Rb4 {[%clk 0:00:09]} 73. Rc5 {[%clk 0:00:09]}  Ra4 {[%clk 0:00:09]} 74. Kf3 {[%clk 0:00:10]}  Rb4 {[%clk 0:00:10]} 75. Ke3 {[%clk 0:00:10]}  Ra4 {[%clk 0:00:10]} 76. Rb5 {[%clk 0:00:10]}  Rh4 {[%clk 0:00:11]} 77. Kf3 {[%clk 0:00:09]}  Rxh5 {[%clk 0:00:12]} 78. Rb6+ {[%clk 0:00:09]}  Kg7 {[%clk 0:00:12]} 79. Kg4 {[%clk 0:00:09]}  Ra5 {[%clk 0:00:12]} 80. Rb7+ {[%clk 0:00:09]}  Kf6 {[%clk 0:00:12]} 81. Rb6+ {[%clk 0:00:09]}  Kg7 {[%clk 0:00:12]} 1/2-1/2


[Site "https://www.chess.com"]

[Event "Titled Tuesday Blitz February 22 Early 2022"]
[White "Kostiukov, Alexandr"]
[Black "Nur-Mukhametova, Alisa"]
[WhiteFideId "14108100"]
[BlackFideId "54117739"]
[WhiteElo "2202"]
[BlackElo "2015"]
[Result "0-1"]
[Round "11"]
[TimeControl "180+1"]
[Date "2022.02.22"]
[WhiteClock "0:00:01"]
[BlackClock "0:00:02"]

1. g3 {[%clk 0:02:52]}  e5 {[%clk 0:02:59]} 2. Bg2 {[%clk 0:02:52]}  d5 {[%clk 0:03:00]} 3. c4 {[%clk 0:02:53]}  Nf6 {[%clk 0:02:57]} 4. cxd5 {[%clk 0:02:53]}  Nxd5 {[%clk 0:02:57]} 5. Nf3 {[%clk 0:02:54]}  Nc6 {[%clk 0:02:57]} 6. O-O {[%clk 0:02:53]}  Be7 {[%clk 0:02:57]} 7. Nc3 {[%clk 0:02:53]}  Nb6 {[%clk 0:02:51]} 8. a4 {[%clk 0:02:48]}  a5 {[%clk 0:02:50]} 9. Nb5 {[%clk 0:02:48]}  O-O {[%clk 0:02:48]} 10. d4 {[%clk 0:02:48]}  exd4 {[%clk 0:02:43]} 11. Nfxd4 {[%clk 0:02:48]}  Nxd4 {[%clk 0:02:43]} 12. Qxd4 {[%clk 0:02:44]}  c6 {[%clk 0:02:39]} 13. Be3 {[%clk 0:02:24]}  Qxd4 {[%clk 0:01:43]} 14. Bxd4 {[%clk 0:02:24]}  Nc4 {[%clk 0:01:43]} 15. Na3 {[%clk 0:02:03]}  Nd2 {[%clk 0:01:28]} 16. Rfd1 {[%clk 0:01:50]}  Nb3 {[%clk 0:01:28]} 17. Rab1 {[%clk 0:01:49]}  Nxd4 {[%clk 0:01:20]} 18. Rxd4 {[%clk 0:01:48]}  Bf5 {[%clk 0:01:20]} 19. e4 {[%clk 0:01:42]}  Be6 {[%clk 0:01:12]} 20. e5 {[%clk 0:00:47]}  Rfd8 {[%clk 0:00:54]} 21. Rbd1 {[%clk 0:00:45]}  Kf8 {[%clk 0:00:33]} 22. Bf1 {[%clk 0:00:40]}  Rxd4 {[%clk 0:00:29]} 23. Rxd4 {[%clk 0:00:40]}  Bc5 {[%clk 0:00:13]} 24. Rh4 {[%clk 0:00:34]}  Bxa3 {[%clk 0:00:11]} 25. bxa3 {[%clk 0:00:31]}  h6 {[%clk 0:00:12]} 26. Rd4 {[%clk 0:00:29]}  Ke7 {[%clk 0:00:12]} 27. Rd2 {[%clk 0:00:25]}  Rd8 {[%clk 0:00:09]} 28. Rb2 {[%clk 0:00:25]}  Rd7 {[%clk 0:00:10]} 29. f4 {[%clk 0:00:25]}  Bd5 {[%clk 0:00:10]} 30. Kf2 {[%clk 0:00:24]}  Ke6 {[%clk 0:00:10]} 31. Bh3+ {[%clk 0:00:23]}  Ke7 {[%clk 0:00:10]} 32. Bxd7 {[%clk 0:00:22]}  Kxd7 {[%clk 0:00:11]} 33. Ke3 {[%clk 0:00:23]}  Kc7 {[%clk 0:00:11]} 34. Kd4 {[%clk 0:00:23]}  Be6 {[%clk 0:00:11]} 35. Kc5 {[%clk 0:00:22]}  Bf5 {[%clk 0:00:09]} 36. Kd4 {[%clk 0:00:13]}  b6 {[%clk 0:00:09]} 37. Ke3 {[%clk 0:00:13]}  Be6 {[%clk 0:00:08]} 38. Kf3 {[%clk 0:00:13]}  Bd5+ {[%clk 0:00:08]} 39. Kg4 {[%clk 0:00:13]}  Be6+ {[%clk 0:00:08]} 40. f5 {[%clk 0:00:13]}  Bc8 {[%clk 0:00:08]} 41. Kf4 {[%clk 0:00:14]}  Ba6 {[%clk 0:00:04]} 42. g4 {[%clk 0:00:14]}  b5 {[%clk 0:00:04]} 43. h4 {[%clk 0:00:13]}  bxa4 {[%clk 0:00:02]} 44. g5 {[%clk 0:00:12]}  hxg5+ {[%clk 0:00:03]} 45. hxg5 {[%clk 0:00:13]}  c5 {[%clk 0:00:03]} 46. f6 {[%clk 0:00:09]}  gxf6 {[%clk 0:00:04]} 47. exf6 {[%clk 0:00:08]}  Bd3 {[%clk 0:00:04]} 48. Ke5 {[%clk 0:00:09]}  Bg6 {[%clk 0:00:04]} 49. Rd2 {[%clk 0:00:05]}  Kc6 {[%clk 0:00:04]} 50. Rd8 {[%clk 0:00:04]}  c4 {[%clk 0:00:04]} 51. Rc8+ {[%clk 0:00:05]}  Kb5 {[%clk 0:00:04]} 52. Kd5 {[%clk 0:00:05]}  Bd3 {[%clk 0:00:04]} 53. Rb8+ {[%clk 0:00:04]}  Ka6 {[%clk 0:00:05]} 54. Kc6 {[%clk 0:00:04]}  Ka7 {[%clk 0:00:04]} 55. Rf8 {[%clk 0:00:04]}  Be4+ {[%clk 0:00:04]} 56. Kc5 {[%clk 0:00:04]}  Bg6 {[%clk 0:00:04]} 57. Kxc4 {[%clk 0:00:03]}  Kb6 {[%clk 0:00:04]} 58. Re8 {[%clk 0:00:03]}  Kc6 {[%clk 0:00:05]} 59. Rg8 {[%clk 0:00:03]}  Bf5 {[%clk 0:00:05]} 60. g6 {[%clk 0:00:03]}  fxg6 {[%clk 0:00:03]} 61. Kd4 {[%clk 0:00:02]}  Kd6 {[%clk 0:00:02]} 62. Re8 {[%clk 0:00:02]}  Be6 {[%clk 0:00:02]} 63. Re7 {[%clk 0:00:01]}  g5 {[%clk 0:00:02]} 0-1


[Site "https://www.chess.com"]

[Event "Titled Tuesday Blitz February 22 Early 2022"]
[White "Krysa, Leandro"]
[Black "King, Alexander"]
[WhiteFideId "116807"]
[BlackFideId "2063620"]
[WhiteElo "2490"]
[BlackElo "2306"]
[Result "0-1"]
[Round "11"]
[TimeControl "180+1"]
[Date "2022.02.22"]
[WhiteClock "0:00:05"]
[BlackClock "0:00:03"]

1. b3 {[%clk 0:03:00]}  d5 {[%clk 0:02:59]} 2. e3 {[%clk 0:02:59]}  Bf5 {[%clk 0:02:53]} 3. Bb2 {[%clk 0:02:58]}  e6 {[%clk 0:02:54]} 4. Nf3 {[%clk 0:02:54]}  Nf6 {[%clk 0:02:53]} 5. c4 {[%clk 0:02:48]}  c6 {[%clk 0:02:48]} 6. Nc3 {[%clk 0:02:44]}  h6 {[%clk 0:02:48]} 7. d4 {[%clk 0:02:40]}  Nbd7 {[%clk 0:02:48]} 8. Bd3 {[%clk 0:02:40]}  Bxd3 {[%clk 0:02:47]} 9. Qxd3 {[%clk 0:02:41]}  Bb4 {[%clk 0:02:43]} 10. O-O {[%clk 0:02:40]}  O-O {[%clk 0:02:42]} 11. a3 {[%clk 0:02:29]}  Bxc3 {[%clk 0:02:38]} 12. Bxc3 {[%clk 0:02:30]}  a5 {[%clk 0:02:17]} 13. Nd2 {[%clk 0:02:25]}  a4 {[%clk 0:02:10]} 14. b4 {[%clk 0:02:21]}  Re8 {[%clk 0:02:01]} 15. Bb2 {[%clk 0:02:16]}  e5 {[%clk 0:01:45]} 16. dxe5 {[%clk 0:02:10]}  Nxe5 {[%clk 0:01:46]} 17. Qc2 {[%clk 0:02:10]}  Nxc4 {[%clk 0:01:11]} 18. Nxc4 {[%clk 0:02:04]}  dxc4 {[%clk 0:01:12]} 19. Rad1 {[%clk 0:01:49]}  Qe7 {[%clk 0:01:00]} 20. Qxc4 {[%clk 0:01:47]}  Nd5 {[%clk 0:00:38]} 21. Rd4 {[%clk 0:01:23]}  Rad8 {[%clk 0:00:29]} 22. Rfd1 {[%clk 0:00:58]}  Nc7 {[%clk 0:00:25]} 23. h3 {[%clk 0:00:46]}  Ne6 {[%clk 0:00:23]} 24. Rxd8 {[%clk 0:00:41]}  Rxd8 {[%clk 0:00:24]} 25. Rxd8+ {[%clk 0:00:37]}  Qxd8 {[%clk 0:00:25]} 26. Qc2 {[%clk 0:00:36]}  Ng5 {[%clk 0:00:04]} 27. Qxa4 {[%clk 0:00:27]}  Qd2 {[%clk 0:00:03]} 28. Qb3 {[%clk 0:00:06]}  Qe1+ {[%clk 0:00:03]} 29. Kh2 {[%clk 0:00:06]}  Qxf2 {[%clk 0:00:04]} 30. Kh1 {[%clk 0:00:05]}  Ne4 {[%clk 0:00:03]} 0-1


[Site "https://www.chess.com"]

[Event "Titled Tuesday Blitz February 22 Early 2022"]
[White "Loy, Konstantin"]
[Black "Gabdrakhmanov, Azat"]
[WhiteFideId "14122499"]
[BlackFideId "34189197"]
[WhiteElo "2084"]
[BlackElo "2279"]
[Result "0-1"]
[Round "11"]
[TimeControl "180+1"]
[Date "2022.02.22"]
[WhiteClock "0:00:01"]
[BlackClock "0:00:28"]

1. e4 {[%clk 0:03:00]}  c5 {[%clk 0:03:00]} 2. Nf3 {[%clk 0:03:00]}  e6 {[%clk 0:03:00]} 3. d3 {[%clk 0:03:01]}  Nc6 {[%clk 0:03:00]} 4. g3 {[%clk 0:03:01]}  Nf6 {[%clk 0:03:00]} 5. Bg2 {[%clk 0:03:01]}  d6 {[%clk 0:03:01]} 6. O-O {[%clk 0:03:01]}  Be7 {[%clk 0:03:01]} 7. Re1 {[%clk 0:03:01]}  e5 {[%clk 0:03:02]} 8. c3 {[%clk 0:02:57]}  Be6 {[%clk 0:03:01]} 9. d4 {[%clk 0:02:53]}  cxd4 {[%clk 0:02:57]} 10. cxd4 {[%clk 0:02:53]}  Bg4 {[%clk 0:02:53]} 11. d5 {[%clk 0:02:34]}  Nd4 {[%clk 0:02:52]} 12. Nc3 {[%clk 0:02:20]}  O-O {[%clk 0:02:51]} 13. Be3 {[%clk 0:02:20]}  Nxf3+ {[%clk 0:02:48]} 14. Bxf3 {[%clk 0:02:21]}  Bxf3 {[%clk 0:02:48]} 15. Qxf3 {[%clk 0:02:22]}  Nd7 {[%clk 0:02:48]} 16. Qe2 {[%clk 0:02:04]}  a6 {[%clk 0:02:48]} 17. f3 {[%clk 0:02:01]}  Bg5 {[%clk 0:02:44]} 18. Bf2 {[%clk 0:01:52]}  f5 {[%clk 0:02:38]} 19. Kg2 {[%clk 0:01:40]}  h5 {[%clk 0:02:23]} 20. exf5 {[%clk 0:01:20]}  Rxf5 {[%clk 0:02:22]} 21. Ne4 {[%clk 0:01:19]}  Be7 {[%clk 0:02:21]} 22. Rac1 {[%clk 0:01:11]}  Qa5 {[%clk 0:02:06]} 23. Qd2 {[%clk 0:00:43]}  Qb5 {[%clk 0:01:48]} 24. Rc7 {[%clk 0:00:36]}  Rd8 {[%clk 0:01:31]} 25. Nc3 {[%clk 0:00:24]}  Qa5 {[%clk 0:01:24]} 26. Rxb7 {[%clk 0:00:24]}  h4 {[%clk 0:01:19]} 27. g4 {[%clk 0:00:23]}  h3+ {[%clk 0:01:18]} 28. Kxh3 {[%clk 0:00:16]}  Rxf3+ {[%clk 0:01:16]} 29. Kg2 {[%clk 0:00:17]}  Rf7 {[%clk 0:01:13]} 30. Ne4 {[%clk 0:00:16]}  Qa4 {[%clk 0:01:04]} 31. Rb4 {[%clk 0:00:12]}  Qxa2 {[%clk 0:00:58]} 32. Bg3 {[%clk 0:00:12]}  Rdf8 {[%clk 0:00:53]} 33. Rb7 {[%clk 0:00:10]}  Qa4 {[%clk 0:00:48]} 34. Qb4 {[%clk 0:00:11]}  Qc2+ {[%clk 0:00:46]} 35. Kh3 {[%clk 0:00:08]}  Nc5 {[%clk 0:00:41]} 36. Nxc5 {[%clk 0:00:05]}  dxc5 {[%clk 0:00:37]} 37. Qb3 {[%clk 0:00:05]}  Qh7+ {[%clk 0:00:36]} 38. Kg2 {[%clk 0:00:05]}  Rf3 {[%clk 0:00:29]} 39. Rxe7 {[%clk 0:00:04]}  Rxb3 {[%clk 0:00:29]} 40. R7xe5 {[%clk 0:00:02]}  Rxb2+ {[%clk 0:00:29]} 41. R1e2 {[%clk 0:00:02]}  Rxe2+ {[%clk 0:00:29]} 42. Rxe2 {[%clk 0:00:03]}  Qd3 {[%clk 0:00:29]} 43. Rf2 {[%clk 0:00:01]}  Qxd5+ {[%clk 0:00:28]} 0-1


[Site "https://www.chess.com"]

[Event "Titled Tuesday Blitz February 22 Early 2022"]
[White "Makhnev, Denis"]
[Black "Kobalia, Mikhail"]
[WhiteFideId "13707647"]
[BlackFideId "4119150"]
[WhiteElo "2491"]
[BlackElo "2667"]
[Result "0-1"]
[Round "11"]
[TimeControl "180+1"]
[Date "2022.02.22"]
[WhiteClock "0:00:19"]
[BlackClock "0:00:17"]

1. d4 {[%clk 0:03:00]}  d5 {[%clk 0:02:59]} 2. c4 {[%clk 0:03:01]}  c6 {[%clk 0:02:59]} 3. Nf3 {[%clk 0:03:02]}  Nf6 {[%clk 0:02:59]} 4. Qb3 {[%clk 0:03:02]}  e6 {[%clk 0:02:51]} 5. Nc3 {[%clk 0:03:02]}  Be7 {[%clk 0:02:51]} 6. Bf4 {[%clk 0:03:01]}  O-O {[%clk 0:02:51]} 7. e3 {[%clk 0:03:02]}  dxc4 {[%clk 0:02:50]} 8. Bxc4 {[%clk 0:03:01]}  b5 {[%clk 0:02:50]} 9. Be2 {[%clk 0:03:01]}  Bb7 {[%clk 0:02:50]} 10. O-O {[%clk 0:02:59]}  Nbd7 {[%clk 0:02:50]} 11. Rfd1 {[%clk 0:02:38]}  a5 {[%clk 0:02:49]} 12. Ne5 {[%clk 0:02:37]}  a4 {[%clk 0:02:47]} 13. Qc2 {[%clk 0:02:36]}  a3 {[%clk 0:02:47]} 14. Bf3 {[%clk 0:02:22]}  Qb6 {[%clk 0:02:44]} 15. Bg5 {[%clk 0:01:55]}  axb2 {[%clk 0:02:18]} 16. Qxb2 {[%clk 0:01:54]}  Nxe5 {[%clk 0:02:17]} 17. dxe5 {[%clk 0:01:48]}  Ba3 {[%clk 0:02:17]} 18. Qb3 {[%clk 0:01:38]}  Nd5 {[%clk 0:02:17]} 19. Ne4 {[%clk 0:01:38]}  c5 {[%clk 0:01:59]} 20. Nd6 {[%clk 0:01:34]}  c4 {[%clk 0:01:55]} 21. Nxc4 {[%clk 0:00:36]}  bxc4 {[%clk 0:01:54]} 22. Qxb6 {[%clk 0:00:37]}  Nxb6 {[%clk 0:01:55]} 23. Bxb7 {[%clk 0:00:38]}  Rab8 {[%clk 0:01:55]} 24. Be4 {[%clk 0:00:37]}  Na4 {[%clk 0:01:51]} 25. Bc2 {[%clk 0:00:34]}  Nc3 {[%clk 0:01:45]} 26. Rd4 {[%clk 0:00:23]}  Ne2+ {[%clk 0:01:42]} 27. Kf1 {[%clk 0:00:23]}  Nxd4 {[%clk 0:01:41]} 28. exd4 {[%clk 0:00:24]}  Rb2 {[%clk 0:01:36]} 29. Be4 {[%clk 0:00:24]}  c3 {[%clk 0:01:26]} 30. Bc1 {[%clk 0:00:22]}  Rc8 {[%clk 0:01:15]} 31. Bxb2 {[%clk 0:00:17]}  Bxb2 {[%clk 0:01:09]} 32. Rb1 {[%clk 0:00:17]}  c2 {[%clk 0:01:09]} 33. Bxc2 {[%clk 0:00:17]}  Rxc2 {[%clk 0:01:08]} 34. a4 {[%clk 0:00:18]}  g5 {[%clk 0:01:07]} 35. a5 {[%clk 0:00:15]}  Bxd4 {[%clk 0:01:06]} 36. Rb4 {[%clk 0:00:16]}  Bxf2 {[%clk 0:01:00]} 37. a6 {[%clk 0:00:15]}  Ra2 {[%clk 0:00:59]} 38. Rg4 {[%clk 0:00:15]}  h6 {[%clk 0:00:55]} 39. Rc4 {[%clk 0:00:13]}  Be3 {[%clk 0:00:50]} 40. Rc6 {[%clk 0:00:13]}  Kg7 {[%clk 0:00:47]} 41. g3 {[%clk 0:00:13]}  Rxh2 {[%clk 0:00:45]} 42. Rc3 {[%clk 0:00:13]}  Bd4 {[%clk 0:00:45]} 43. Ra3 {[%clk 0:00:13]}  Ba7 {[%clk 0:00:41]} 44. Rb3 {[%clk 0:00:11]}  Ra2 {[%clk 0:00:40]} 45. Rb7 {[%clk 0:00:12]}  Rxa6 {[%clk 0:00:40]} 46. Kg2 {[%clk 0:00:13]}  h5 {[%clk 0:00:39]} 47. Kh3 {[%clk 0:00:13]}  Ra3 {[%clk 0:00:36]} 48. Rd7 {[%clk 0:00:11]}  Bf2 {[%clk 0:00:35]} 49. Rd2 {[%clk 0:00:11]}  Bxg3 {[%clk 0:00:32]} 50. Kg2 {[%clk 0:00:12]}  Bf4 {[%clk 0:00:32]} 51. Re2 {[%clk 0:00:13]}  h4 {[%clk 0:00:32]} 52. Kf2 {[%clk 0:00:13]}  g4 {[%clk 0:00:31]} 53. Re4 {[%clk 0:00:14]}  Ra2+ {[%clk 0:00:29]} 54. Kf1 {[%clk 0:00:15]}  Ra1+ {[%clk 0:00:23]} 55. Ke2 {[%clk 0:00:15]}  h3 {[%clk 0:00:19]} 56. Rxf4 {[%clk 0:00:15]}  h2 {[%clk 0:00:19]} 57. Rxg4+ {[%clk 0:00:16]}  Kf8 {[%clk 0:00:19]} 58. Rh4 {[%clk 0:00:17]}  h1=Q {[%clk 0:00:19]} 59. Rh8+ {[%clk 0:00:18]}  Qxh8 {[%clk 0:00:18]} 60. Kf3 {[%clk 0:00:19]}  Qh5+ {[%clk 0:00:18]} 61. Kf4 {[%clk 0:00:19]}  Rf1+ {[%clk 0:00:16]} 62. Ke3 {[%clk 0:00:19]}  Qh3+ {[%clk 0:00:16]} 63. Kd2 {[%clk 0:00:20]}  Rf2+ {[%clk 0:00:16]} 64. Ke1 {[%clk 0:00:19]}  Qf1# {[%clk 0:00:17]} 0-1


[Site "https://www.chess.com"]

[Event "Titled Tuesday Blitz February 22 Early 2022"]
[White "Maltsevskaya, Aleksandra"]
[Black "Weetik, Vjacheslav"]
[WhiteFideId "24174041"]
[BlackFideId "4153472"]
[WhiteElo "2283"]
[BlackElo "2469"]
[Result "0-1"]
[Round "11"]
[TimeControl "180+1"]
[Date "2022.02.22"]
[WhiteClock "0:00:03"]
[BlackClock "0:00:55"]

1. e4 {[%clk 0:03:00]}  c6 {[%clk 0:03:00]} 2. d4 {[%clk 0:02:59]}  d5 {[%clk 0:03:00]} 3. Nc3 {[%clk 0:03:00]}  dxe4 {[%clk 0:03:00]} 4. Nxe4 {[%clk 0:03:01]}  Nf6 {[%clk 0:03:01]} 5. Nxf6+ {[%clk 0:02:59]}  exf6 {[%clk 0:03:02]} 6. Bd3 {[%clk 0:02:59]}  Bd6 {[%clk 0:03:02]} 7. c3 {[%clk 0:02:59]}  O-O {[%clk 0:03:02]} 8. Qc2 {[%clk 0:03:00]}  Re8+ {[%clk 0:03:03]} 9. Ne2 {[%clk 0:03:00]}  h5 {[%clk 0:03:04]} 10. O-O {[%clk 0:03:00]}  h4 {[%clk 0:03:04]} 11. h3 {[%clk 0:03:01]}  Nd7 {[%clk 0:03:04]} 12. Be3 {[%clk 0:02:57]}  Nf8 {[%clk 0:03:00]} 13. Rad1 {[%clk 0:02:58]}  Bc7 {[%clk 0:02:45]} 14. Qc1 {[%clk 0:02:38]}  Ng6 {[%clk 0:02:42]} 15. Rfe1 {[%clk 0:02:11]}  Be6 {[%clk 0:02:22]} 16. Nf4 {[%clk 0:01:48]}  Qd6 {[%clk 0:02:19]} 17. Nxg6 {[%clk 0:00:14]}  Qh2+ {[%clk 0:02:17]} 18. Kf1 {[%clk 0:00:14]}  fxg6 {[%clk 0:02:15]} 19. Bxg6 {[%clk 0:00:06]}  Bc4+ {[%clk 0:01:36]} 20. Bd3 {[%clk 0:00:06]}  Bxd3+ {[%clk 0:01:36]} 21. Rxd3 {[%clk 0:00:07]}  Qh1+ {[%clk 0:01:37]} 22. Ke2 {[%clk 0:00:07]}  Qxg2 {[%clk 0:01:37]} 23. Rg1 {[%clk 0:00:08]}  Qxh3 {[%clk 0:01:34]} 24. Kd2 {[%clk 0:00:05]}  Qf5 {[%clk 0:01:31]} 25. Kc2 {[%clk 0:00:04]}  h3 {[%clk 0:01:28]} 26. Qf1 {[%clk 0:00:03]}  h2 {[%clk 0:01:11]} 27. Rh1 {[%clk 0:00:03]}  Kf7 {[%clk 0:00:56]} 28. f4 {[%clk 0:00:03]}  Rxe3 {[%clk 0:00:55]} 0-1


[Site "https://www.chess.com"]

[Event "Titled Tuesday Blitz February 22 Early 2022"]
[White "Manukyan, Artyom"]
[Black "Urazayev, Arystanbek"]
[WhiteFideId "13305786"]
[BlackFideId "13709810"]
[WhiteElo "2034"]
[BlackElo "2321"]
[Result "0-1"]
[Round "11"]
[TimeControl "180+1"]
[Date "2022.02.22"]
[WhiteClock "0:00:01"]
[BlackClock "0:00:21"]

1. e4 {[%clk 0:03:00]}  c6 {[%clk 0:02:59]} 2. d4 {[%clk 0:02:56]}  d5 {[%clk 0:03:00]} 3. exd5 {[%clk 0:02:56]}  cxd5 {[%clk 0:03:01]} 4. Bd3 {[%clk 0:02:56]}  Nf6 {[%clk 0:03:01]} 5. c3 {[%clk 0:02:56]}  Bg4 {[%clk 0:03:00]} 6. Qb3 {[%clk 0:02:56]}  Qc7 {[%clk 0:03:01]} 7. h3 {[%clk 0:02:56]}  Bh5 {[%clk 0:03:01]} 8. g4 {[%clk 0:02:57]}  Bg6 {[%clk 0:03:02]} 9. Bxg6 {[%clk 0:02:57]}  hxg6 {[%clk 0:03:03]} 10. g5 {[%clk 0:02:58]}  Nfd7 {[%clk 0:03:04]} 11. Qxd5 {[%clk 0:02:58]}  e5 {[%clk 0:03:04]} 12. Nf3 {[%clk 0:02:56]}  Nc6 {[%clk 0:03:04]} 13. Be3 {[%clk 0:02:51]}  O-O-O {[%clk 0:03:00]} 14. Qe4 {[%clk 0:02:49]}  f5 {[%clk 0:02:58]} 15. gxf6 {[%clk 0:02:47]}  Nxf6 {[%clk 0:02:59]} 16. Qxg6 {[%clk 0:02:38]}  exd4 {[%clk 0:02:59]} 17. cxd4 {[%clk 0:02:36]}  Nb4 {[%clk 0:02:54]} 18. Nc3 {[%clk 0:02:23]}  Rd6 {[%clk 0:02:23]} 19. Qf5+ {[%clk 0:02:16]}  Rd7 {[%clk 0:02:18]} 20. Nb5 {[%clk 0:01:54]}  Nc2+ {[%clk 0:01:57]} 21. Kd1 {[%clk 0:01:34]}  Nxe3+ {[%clk 0:01:58]} 22. fxe3 {[%clk 0:01:35]}  Qb6 {[%clk 0:01:58]} 23. Rc1+ {[%clk 0:01:06]}  Kb8 {[%clk 0:01:51]} 24. Qe5+ {[%clk 0:00:45]}  Bd6 {[%clk 0:01:51]} 25. Nxd6 {[%clk 0:00:45]}  Rxd6 {[%clk 0:01:52]} 26. Qc5 {[%clk 0:00:35]}  Qd8 {[%clk 0:01:52]} 27. Ne5 {[%clk 0:00:21]}  Ne4 {[%clk 0:01:52]} 28. Qb5 {[%clk 0:00:21]}  Nf2+ {[%clk 0:01:36]} 29. Ke2 {[%clk 0:00:21]}  Nxh1 {[%clk 0:01:36]} 30. Nf7 {[%clk 0:00:12]}  Ng3+ {[%clk 0:01:28]} 31. Kd3 {[%clk 0:00:12]}  Qe7 {[%clk 0:00:34]} 32. Nxh8 {[%clk 0:00:05]}  Qe4+ {[%clk 0:00:35]} 33. Kd2 {[%clk 0:00:04]}  Qg2+ {[%clk 0:00:35]} 34. Kd1 {[%clk 0:00:02]}  Qg1+ {[%clk 0:00:26]} 35. Kd2 {[%clk 0:00:02]}  Qf2+ {[%clk 0:00:24]} 36. Kd1 {[%clk 0:00:01]}  Rd8 {[%clk 0:00:21]} 0-1


[Site "https://www.chess.com"]